[Event "8. Arber-Schachopen 2019"]
[Site "Bodenmais"]
[Date "2019.08.02"]
[Round "7.18"]
[White "Schmid, Wolfgang"]
[Black "Danninger, Jannik"]
[Result "1/2-1/2"]
[ECO "B56"]
[WhiteElo "2162"]
[BlackElo "1842"]
[Annotator "ChessBase"]
[PlyCount "87"]
[EventDate "2019.07.27"]
[EventCountry "GER"]
[SourceTitle "playchess.com"]
[Source "ChessBase"]
[SourceQuality "1"]
[TimeControl "40/5400+30:1800+30"]

1. e4 {[%emt 0:00:00]} c5 {[%emt 0:00:00]} 2. Nf3 {[%emt 0:00:00]} d6 {[%emt 0:00:00]} 3. d4 {[%emt 0:00:00]} cxd4 {[%emt 0:00:01]} 4. Nxd4 {[%emt 0:00:44]} Nf6 {[%emt 0:00:19]} 5. Nc3 {[%emt 0:00:09]} Nc6 {[%emt 0:00:16]} 6. h3 {[%emt 0:02:01]} g6 {[%emt 0:00:19]} 7. Be3 {[%emt 0:01:01]} Bg7 {[%emt 0:00:15]} 8. Qd2 {[%emt 0:01:07]} O-O {[%emt 0:00:25]} 9. g3 {[%emt 0:03:06]} Qa5 {[%emt 0:04:12]} 10. Bg2 {[%emt 0:03:01]} Qb4 {[%emt 0:02:04]} 11. O-O {[%emt 0:10:02]} Nxd4 {[%emt 0:09:55]} 12. a3 {[%emt 0:14:23]} Nxe4 {[%emt 0:08:41]} 13. Bxe4 {[%emt 0:07:46]} Qc4 {[%emt 0:03:32]} 14. Rfd1 {[%emt 0:19:11]} Nf5 {[%emt 0:04:39]} 15. Bg2 {[%emt 0:06:58]} Bxc3 {[%emt 0:04:10]} 16. bxc3 {[%emt 0:00:13]} Nxe3 {[%emt 0:00:09]} 17. Qxe3 {[%emt 0:00:18]} Qc7 {[%emt 0:00:47]} 18. Rab1 {[%emt 0:01:21]} e6 {[%emt 0:08:28]} 19. Rb4 {[%emt 0:04:09]} d5 {[%emt 0:04:04]} 20. Rdb1 {[%emt 0:02:06]} a5 {[%emt 0:03:54]} 21. Rh4 {[%emt 0:01:35]} Ra6 {[%emt 0:01:14]} 22. Bf1 {[%emt 0:01:46]} Rc6 {[%emt 0:01:37]} 23. Rb3 {[%emt 0:00:42]} b6 {[%emt 0:05:42]} 24. c4 {[%emt 0:02:24]} dxc4 {[%emt 0:01:06]} 25. Rb5 {[%emt 0:00:23]} Ba6 {[%emt 0:01:11]} 26. Rbh5 {[%emt 0:01:07]} f5 {[%emt 0:02:54]} 27. Rxh7 {[%emt 0:00:27]} Qxh7 {[%emt 0:00:17]} 28. Rxh7 {[%emt 0:00:02]} Kxh7 {[%emt 0:00:09]} 29. Qd4 {[%emt 0:01:01]} Rf7 {[%emt 0:12:09]} 30. Bg2 {[%emt 0:00:58]} Rc5 {[%emt 0:01:58]} 31. Qd6 {[%emt 0:00:12]} Bc8 {[%emt 0:00:31]} 32. Qxb6 {[%emt 0:00:32]} Rfc7 {[%emt 0:01:04]} 33. f4 {[%emt 0:03:16]} c3 {[%emt 0:01:38]} 34. Bf3 {[%emt 0:01:49]} Kg7 {[%emt 0:01:15]} 35. Kf2 {[%emt 0:00:18]} Kf7 {[%emt 0:00:59]} 36. Qd6 {[%emt 0:01:40]} Bd7 {[%emt 0:05:34]} 37. Qd4 {[%emt 0:02:58]} Rc4 {[%emt 0:02:32]} 38. Qh8 {[%emt 0:01:05]} Ba4 {[%emt 0:00:43]} 39. Be2 {[%emt 0:01:43]} R4c5 {[%emt 0:02:05]} 40. Qh7+ {[%emt 0:02:13]} Kf6 {[%emt 0:01:53]} 41. Qh8+ {[%emt 0:30:48]} Kf7 {[%emt 0:32:03]} 42. Qh7+ {[%emt 0:02:20]} Kf6 {[%emt 0:00:20]} 43. Qh8+ {[%emt 0:00:09]} Kf7 {[%emt 0:01:58]} 44. Qh7+ 1/2-1/2

[Event "8. Arber-Schachopen 2019"]
[Site "Bodenmais"]
[Date "2019.08.02"]
[Round "7.19"]
[White "Hoffmann, Tim"]
[Black "Kneutgen, Alexander"]
[Result "1-0"]
[ECO "C03"]
[WhiteElo "2147"]
[BlackElo "1920"]
[Annotator "NA"]
[PlyCount "57"]
[EventDate "2019.07.27"]
[EventCountry "GER"]
[SourceTitle "playchess.com"]
[Source "ChessBase"]
[SourceQuality "1"]
[TimeControl "40/5400+30:1800+30"]

1. e4 {[%emt 0:00:00]} e6 {[%emt 0:00:00]} 2. d4 {[%emt 0:00:00]} d5 {[%emt 0:00:00]} 3. Nd2 {[%emt 0:00:00]} h6 {[%emt 0:00:44]} 4. e5 {[%emt 0:05:30]} Qd7 {[%emt 0:12:51]} 5. f4 {[%emt 0:08:06]} b6 {[%emt 0:02:27]} 6. c3 {[%emt 0:03:40]} Ba6 {[%emt 0:01:35]} 7. Ne2 {[%emt 0:09:57]} c5 {[%emt 0:02:19]} 8. Nf3 {[%emt 0:00:51]} Nc6 {[%emt 0:02:44]} 9. Be3 {[%emt 0:04:34]} Rc8 {[%emt 0:09:17]} 10. g4 {[%emt 0:05:31]} cxd4 {[%emt 0:03:08]} 11. Nexd4 {[%emt 0:02:20]} Bxf1 {[%emt 0:00:19]} 12. Rxf1 {[%emt 0:00:28]} Bc5 {[%emt 0:06:17]} 13. Qd3 {[%emt 0:01:33]} Nxd4 {[%emt 0:01:11]} 14. cxd4 {[%emt 0:04:20]} Bb4+ {[%emt 0:02:09]} 15. Kf2 {[%emt 0:00:37]} b5 {[%emt 0:05:01]} 16. Rfc1 {[%emt 0:10:29]} Rxc1 {[%emt 0:04:55]} 17. Rxc1 {[%emt 0:00:04]} Ne7 {[%emt 0:00:18]} 18. Qc2 {[%emt 0:16:23]} Ba5 {[%emt 0:01:28]} 19. Bd2 {[%emt 0:01:57]} Bxd2 {[%emt 0:08:09]} 20. Nxd2 {[%emt 0:00:11]} h5 {[%emt 0:01:18]} 21. h3 {[%emt 0:02:14]} O-O {[%emt 0:03:42]} (21... hxg4 $11 {keeps the balance.} 22. hxg4 f5) 22. Qc7 {[%emt 0:00:42]} ({Much worse is} 22. gxh5 $6 Rc8 $11) 22... Rd8 $16 {[%emt 0:01:18]} 23. Nb3 {[%emt 0:01:54]} hxg4 {[%emt 0:10:51]} 24. hxg4 {[%emt 0:00:11]} g6 {[%emt 0:01:01]} 25. Qc3 {[%emt 0:03:56]} Rc8 {[%emt 0:04:56]} 26. Nc5 {[%emt 0:00:13]} Qd8 {[%emt 0:00:43]} 27. Rh1 {[%emt 0:01:17]} Qf8 {[%emt 0:04:20]} 28. Nd7 {[%emt 0:04:01]} Qg7 {[%emt 0:02:21]} 29. Qa3 {[%emt 0:02:24]} 1-0

[Event "8. Arber-Schachopen 2019"]
[Site "Bodenmais"]
[Date "2019.08.02"]
[Round "7.20"]
[White "Glaser, Max"]
[Black "Fauth, Dietmar"]
[Result "1-0"]
[ECO "B30"]
[WhiteElo "1949"]
[BlackElo "2122"]
[Annotator "ChessBase"]
[PlyCount "51"]
[EventDate "2019.07.27"]
[EventCountry "GER"]
[SourceTitle "playchess.com"]
[Source "ChessBase"]
[SourceQuality "1"]
[TimeControl "40/5400+30:1800+30"]

1. e4 {[%emt 0:00:00]} c5 {[%emt 0:00:00]} 2. Nf3 {[%emt 0:00:00]} Nc6 {[%emt 0:00:00]} 3. Bb5 {[%emt 0:00:00]} Nf6 {[%emt 0:00:20]} 4. Bxc6 {[%emt 0:00:00]} dxc6 {[%emt 0:00:04]} 5. d3 {[%emt 0:00:00]} Bg4 {[%emt 0:01:31]} 6. h3 {[%emt 0:00:12]} Bh5 {[%emt 0:01:21]} 7. b3 {[%emt 0:00:05]} Qc7 {[%emt 0:04:48]} 8. Bb2 {[%emt 0:04:03]} Nd7 {[%emt 0:05:59]} 9. Qe2 {[%emt 0:09:43]} e5 {[%emt 0:01:15]} 10. Qe3 {[%emt 0:00:17]} f6 {[%emt 0:02:10]} 11. Nbd2 {[%emt 0:04:38]} Bf7 {[%emt 0:03:23]} 12. a4 {[%emt 0:00:50]} b6 {[%emt 0:02:51]} 13. O-O {[%emt 0:00:15]} Be7 {[%emt 0:01:06]} 14. Ne1 {[%emt 0:06:52]} g5 {[%emt 0:04:15]} 15. Nc4 {[%emt 0:01:43]} Nf8 {[%emt 0:02:49]} 16. Nf3 {[%emt 0:10:46]} Ne6 {[%emt 0:02:39]} 17. Ncxe5 {[%emt 0:03:47]} O-O {[%emt 0:06:51]} 18. Ng4 {[%emt 0:04:17]} Qf4 {[%emt 0:13:47]} 19. Qxf4 {[%emt 0:01:17]} Nxf4 {[%emt 0:00:09]} 20. Nh6+ {[%emt 0:00:52]} Kh8 {[%emt 0:01:19]} 21. Nf5 {[%emt 0:01:34]} Bd8 {[%emt 0:00:42]} 22. Nxg5 {[%emt 0:00:39]} Bg6 {[%emt 0:02:22]} 23. g3 {[%emt 0:05:42]} Ne2+ {[%emt 0:02:13]} 24. Kg2 {[%emt 0:00:56]} Re8 {[%emt 0:02:59]} 25. Rfe1 {[%emt 0:04:59]} Kg8 {[%emt 0:09:27]} 26. Nf3 {[%emt 0:01:53]} 1-0

[Event "8. Arber-Schachopen 2019"]
[Site "Bodenmais"]
[Date "2019.08.02"]
[Round "7.21"]
[White "Gruettner, Ralf"]
[Black "Liebold, Aaron"]
[Result "1-0"]
[ECO "E35"]
[WhiteElo "2118"]
[BlackElo "1944"]
[Annotator "ChessBase"]
[PlyCount "115"]
[EventDate "2019.07.27"]
[EventCountry "GER"]
[SourceTitle "playchess.com"]
[Source "ChessBase"]
[SourceQuality "1"]
[TimeControl "40/5400+30:1800+30"]

1. d4 {[%emt 0:00:00]} Nf6 {[%emt 0:00:00]} 2. c4 {[%emt 0:00:00]} e6 {[%emt 0:00:00]} 3. Nc3 {[%emt 0:00:00]} Bb4 {[%emt 0:00:05]} 4. Qc2 {[%emt 0:00:00]} d5 {[%emt 0:01:48]} 5. cxd5 {[%emt 0:00:00]} exd5 {[%emt 0:00:23]} 6. Bg5 {[%emt 0:01:34]} O-O {[%emt 0:00:26]} 7. a3 {[%emt 0:01:35]} Be7 {[%emt 0:00:16]} 8. e3 {[%emt 0:00:51]} h6 {[%emt 0:04:28]} 9. Bf4 {[%emt 0:05:10]} c6 {[%emt 0:04:19]} 10. h3 {[%emt 0:00:48]} Bd6 {[%emt 0:05:07]} 11. Bxd6 {[%emt 0:02:10]} Qxd6 {[%emt 0:01:10]} 12. Bd3 {[%emt 0:00:40]} b6 {[%emt 0:01:28]} 13. Nf3 {[%emt 0:20:25]} Ba6 {[%emt 0:02:36]} 14. O-O {[%emt 0:04:15]} Bxd3 {[%emt 0:00:33]} 15. Qxd3 {[%emt 0:00:02]} Nbd7 {[%emt 0:00:10]} 16. Rfd1 {[%emt 0:01:17]} Rfe8 {[%emt 0:01:20]} 17. Nd2 {[%emt 0:03:14]} Rac8 {[%emt 0:03:18]} 18. Rac1 {[%emt 0:04:23]} Qe7 {[%emt 0:06:08]} 19. Rc2 {[%emt 0:23:11]} Nf8 {[%emt 0:06:03]} 20. Rdc1 {[%emt 0:01:31]} Ne6 {[%emt 0:00:22]} 21. Nf3 {[%emt 0:01:59]} Red8 {[%emt 0:03:02]} 22. b4 {[%emt 0:05:23]} c5 {[%emt 0:04:33]} 23. dxc5 {[%emt 0:00:52]} bxc5 {[%emt 0:00:21]} 24. bxc5 {[%emt 0:01:41]} Rxc5 {[%emt 0:00:40]} 25. Ne2 {[%emt 0:04:54]} Rdc8 {[%emt 0:02:01]} 26. Nfd4 {[%emt 0:03:13]} Nxd4 {[%emt 0:12:07]} 27. Nxd4 {[%emt 0:00:02]} Rxc2 {[%emt 0:00:46]} 28. Rxc2 {[%emt 0:00:01]} Rxc2 {[%emt 0:00:06]} 29. Nxc2 {[%emt 0:00:31]} Qc5 {[%emt 0:00:07]} 30. Qb3 {[%emt 0:06:58]} Ne4 {[%emt 0:03:57]} 31. f3 {[%emt 0:02:12]} Nd6 {[%emt 0:02:13]} 32. Kf2 {[%emt 0:02:14]} Kf8 {[%emt 0:03:38]} 33. Nd4 {[%emt 0:02:34]} Ke7 {[%emt 0:01:46]} 34. Qb4 {[%emt 0:02:09]} Qb6 {[%emt 0:08:47]} 35. Nf5+ {[%emt 0:00:48]} Kd7 {[%emt 0:00:05]} 36. Nxd6 {[%emt 0:00:09]} Qxd6 {[%emt 0:00:11]} 37. Qb7+ {[%emt 0:00:07]} Ke6 {[%emt 0:00:59]} 38. Qxa7 {[%emt 0:00:05]} Qc6 {[%emt 0:00:17]} 39. Qd4 {[%emt 0:01:22]} f6 {[%emt 0:05:57]} 40. a4 {[%emt 0:00:16]} Qc2+ {[%emt 0:01:16]} 41. Kg3 {[%emt 0:30:20]} g5 {[%emt 0:30:36]} 42. Qb6+ {[%emt 0:00:00]} Kf5 {[%emt 0:00:00]} 43. a5 {[%emt 0:00:00]} h5 {[%emt 0:00:00]} 44. a6 {[%emt 0:00:00]} g4 {[%emt 0:00:00]} 45. hxg4+ {[%emt 0:00:00]} hxg4 {[%emt 0:00:00]} 46. fxg4+ {[%emt 0:00:00]} Kg5 {[%emt 0:00:00]} 47. Qd4 {[%emt 0:00:00]} Qe2 {[%emt 0:00:00]} 48. Qf4+ {[%emt 0:00:00]} Kg6 {[%emt 0:00:00]} 49. a7 {[%emt 0:00:00]} Qe1+ {[%emt 0:00:00]} 50. Qf2 {[%emt 0:00:00]} Qa5 {[%emt 0:00:00]} 51. Qf5+ {[%emt 0:00:35]} Kg7 {[%emt 0:00:00]} 52. g5 {[%emt 0:01:46]} fxg5 {[%emt 0:00:00]} 53. Qxg5+ {[%emt 0:00:39]} Kh7 {[%emt 0:00:00]} 54. Qe7+ {[%emt 0:00:15]} Kg6 {[%emt 0:00:00]} 55. Qe8+ {[%emt 0:00:34]} Kg5 {[%emt 0:00:00]} 56. Qg8+ {[%emt 0:00:14]} Kf5 {[%emt 0:00:00]} 57. Qf8+ {[%emt 0:00:23]} Kg5 {[%emt 0:00:00]} 58. a8=Q 1-0

[Event "8. Arber-Schachopen 2019"]
[Site "Bodenmais"]
[Date "2019.08.02"]
[Round "7.22"]
[White "Pfeifer, Wilfried"]
[Black "Zepke, Armin"]
[Result "1/2-1/2"]
[ECO "A03"]
[WhiteElo "1916"]
[BlackElo "2122"]
[Annotator "NA"]
[PlyCount "44"]
[EventDate "2019.07.27"]
[EventCountry "GER"]
[SourceTitle "playchess.com"]
[Source "ChessBase"]
[SourceQuality "1"]
[TimeControl "40/5400+30:1800+30"]

1. f4 {[%emt 0:00:00]} d5 {[%emt 0:00:00]} 2. Nf3 {[%emt 0:00:00]} Nf6 {[%emt 0:00:00]} 3. e3 {[%emt 0:00:17]} Bf5 {[%emt 0:00:00]} 4. Be2 {[%emt 0:03:15]} e6 {[%emt 0:00:00]} 5. O-O {[%emt 0:00:51]} Bd6 {[%emt 0:00:26]} 6. Ne5 {[%emt 0:05:14]} Nbd7 {[%emt 0:00:25]} 7. Nxd7 Qxd7 {[%emt 0:03:30]} 8. Nc3 {[%emt 0:03:51]} c6 {[%emt 0:02:25]} 9. d3 {[%emt 0:00:50]} e5 {[%emt 0:02:44]} 10. e4 {[%emt 0:12:14]} dxe4 {[%emt 0:00:52]} 11. dxe4 {[%emt 0:00:53]} Nxe4 {[%emt 0:02:58]} 12. Nxe4 {[%emt 0:00:40]} Bxe4 {[%emt 0:01:23]} 13. fxe5 {[%emt 0:00:02]} Bc5+ {[%emt 0:00:22]} 14. Kh1 {[%emt 0:00:05]} Qxd1 {[%emt 0:02:58]} 15. Bxd1 {[%emt 0:00:06]} O-O {[%emt 0:01:02]} 16. Re1 {[%emt 0:10:04]} Bd5 {[%emt 0:01:57]} 17. Be3 {[%emt 0:08:39]} Bxe3 {[%emt 0:07:22]} 18. Rxe3 {[%emt 0:00:02]} Rae8 {[%emt 0:00:13]} 19. Bf3 {[%emt 0:02:04]} f6 {[%emt 0:00:54]} 20. Bxd5+ {[%emt 0:04:09]} cxd5 {[%emt 0:00:07]} 21. e6 {[%emt 0:00:22]} Re7 {[%emt 0:00:06]} 22. Kg1 {[%emt 0:04:50]} Rd8 {[%emt 0:00:10]} 1/2-1/2

[Event "8. Arber-Schachopen 2019"]
[Site "Bodenmais"]
[Date "2019.08.02"]
[Round "7.23"]
[White "Fuchs, Michael"]
[Black "Weisheit, Erik"]
[Result "1-0"]
[ECO "B20"]
[WhiteElo "2114"]
[BlackElo "1862"]
[Annotator "NA"]
[PlyCount "65"]
[EventDate "2019.07.27"]
[EventCountry "GER"]
[SourceTitle "playchess.com"]
[Source "ChessBase"]
[SourceQuality "1"]
[TimeControl "40/5400+30:1800+30"]

1. e4 {[%emt 0:00:00]} c5 {[%emt 0:07:33]} 2. Be2 {[%emt 0:00:04]} Nc6 {[%emt 0:00:49]} (2... g6 3. f4 Bg7 4. c3 Nf6 5. d3 d6 6. Nf3 O-O 7. O-O c4 8. d4 Nxe4 9. Bxc4 Nd7 {0-1 (46) Fedoseev,V (2733)-Artemiev,V (2696) Sochi 2017}) 3. f4 {[%emt 0:00:05]} e5 {[%emt 0:05:26]} 4. d3 {[%emt 0:03:18]} g6 {[%emt 0:01:06]} 5. Nf3 {[%emt 0:00:21]} d6 {[%emt 0:00:44]} 6. O-O {[%emt 0:01:40] B31: Sicilian: 2...Nc6 3 Bb5 g6} Bg7 {[%emt 0:02:00]} 7. c3 {[%emt 0:00:15]} Nge7 {[%emt 0:02:00]} 8. Na3 {[%emt 0:01:52]} O-O {[%emt 0:02:16]} 9. Nc2 {[%emt 0:01:39]} d5 {[%emt 0:02:37]} 10. Nxe5 $146 {[%emt 0:06:43]} ({Predecessor:} 10. Qe1 dxe4 11. dxe4 Bg4 12. Qg3 Bxf3 13. Rxf3 {0-1 (38) Norbeck,I-Karlstroem,T corr 1984}) 10... Nxe5 {[%emt 0:00:48]} 11. fxe5 {[%emt 0:00:04]} d4 {[%emt 0:07:46]} 12. cxd4 {[%emt 0:01:21]} cxd4 {[%emt 0:00:07]} 13. Bf4 {[%emt 0:01:38]} Nc6 {[%emt 0:00:29]} 14. Qe1 {[%emt 0:03:46]} Qb6 {[%emt 0:04:38]} 15. b3 {[%emt 0:01:36]} Bxe5 {[%emt 0:05:42]} 16. Bh6 {[%emt 0:12:06]} Bg7 {[%emt 0:00:16]} 17. Bxg7 {[%emt 0:02:00]} Kxg7 {[%emt 0:00:06]} 18. Qh4 {[%emt 0:00:24]} Be6 {[%emt 0:03:54]} 19. Qf6+ {[%emt 0:00:36]} Kg8 {[%emt 0:00:04]} 20. h4 {[%emt 0:02:53]} Rac8 {[%emt 0:10:30]} 21. Rac1 {[%emt 0:02:46]} Qd8 {[%emt 0:01:45]} 22. Qf2 {[%emt 0:00:42]} f5 {[%emt 0:01:11]} 23. exf5 {[%emt 0:02:23]} Rxf5 {[%emt 0:03:47]} 24. Qg3 {[%emt 0:01:45]} Rxf1+ {[%emt 0:01:21]} 25. Rxf1 {[%emt 0:01:28]} Qd5 {[%emt 0:07:13]} 26. h5 {[%emt 0:09:15]} Kg7 {[%emt 0:07:28]} ({Black should play} 26... Qe5 $14 27. Qxe5 Nxe5 28. Nxd4 Bg4) 27. Qf4 {[%emt 0:03:43]} Qe5 {[%emt 0:05:19]} 28. Qxe5+ $11 {[%emt 0:05:16]} Nxe5 {[%emt 0:00:09]} 29. Nxd4 {[%emt 0:00:04]} Bd5 {[%emt 0:00:43]} 30. hxg6 {[%emt 0:00:44]} hxg6 {[%emt 0:00:09]} 31. Nf3 {[%emt 0:09:32]} Rc2 {[%emt 0:03:59]} 32. Re1 {[%emt 0:01:01]} Bxf3 {[%emt 0:02:02]} 33. Bxf3 {[%emt 0:00:24]} 1-0

[Event "8. Arber-Schachopen 2019"]
[Site "Bodenmais"]
[Date "2019.08.02"]
[Round "7.24"]
[White "Jergler, Karl-Heinz"]
[Black "Vanhee, Lars"]
[Result "1-0"]
[ECO "B12"]
[WhiteElo "2094"]
[BlackElo "1895"]
[Annotator "NA"]
[PlyCount "69"]
[EventDate "2019.07.27"]
[EventCountry "GER"]
[SourceTitle "playchess.com"]
[Source "ChessBase"]
[SourceQuality "1"]
[TimeControl "40/5400+30:1800+30"]

1. e4 {[%emt 0:00:00]} c6 {[%emt 0:00:00]} 2. d4 {[%emt 0:00:00]} d5 {[%emt 0:00:00]} 3. e5 {[%emt 0:00:00]} Bf5 {[%emt 0:00:00]} 4. Nf3 {[%emt 0:00:00]} e6 {[%emt 0:00:00]} 5. Be2 {[%emt 0:00:00]} c5 {[%emt 0:02:52]} 6. c3 {[%emt 0:01:02]} Nc6 {[%emt 0:01:16]} 7. O-O {[%emt 0:00:06]} cxd4 {[%emt 0:00:37] B12: Caro-Kann: Advance Variation} 8. Nxd4 {[%emt 0:00:06]} Nge7 {[%emt 0:10:38]} 9. Nxf5 {[%emt 0:08:37]} (9. Qb3 Qd7 10. f4 Bg6 11. Be3 Nf5 12. Nxf5 Bxf5 13. Nd2 h5 14. Nf3 Be7 15. Rad1 {½-½ (38) Fressinet,L (2662)-Kasimdzhanov,R (2683) Riadh 2017}) 9... Nxf5 {[%emt 0:00:55]} 10. Bd3 {[%emt 0:00:28]} Nh4 {[%emt 0:07:37]} 11. Re1 {[%emt 0:06:51]} Be7 $146 {[%emt 0:02:26]} ({Predecessor:} 11... Ng6 12. Qh5 Bc5 13. b4 Bb6 14. b5 {1-0 (35) Ebeling,D (2328)-Ronka,E (2074) Jyvaskyla 2012}) 12. Nd2 {[%emt 0:01:38]} Qc7 {[%emt 0:03:51]} 13. Qe2 {[%emt 0:08:14]} O-O {[%emt 0:05:54]} 14. g3 {[%emt 0:05:28]} Ng6 {[%emt 0:00:47]} 15. Nf3 {[%emt 0:00:07]} Rac8 {[%emt 0:02:35]} 16. h4 {[%emt 0:02:13]} Rfd8 {[%emt 0:08:29]} 17. Bd2 {[%emt 0:06:27]} a6 {[%emt 0:02:33]} 18. Rac1 {[%emt 0:09:40]} Rd7 {[%emt 0:04:29]} 19. Kg2 {[%emt 0:07:16]} Rdd8 {[%emt 0:07:55]} 20. Bb1 {[%emt 0:10:36]} b5 {[%emt 0:03:41]} 21. Bxg6 {[%emt 0:02:19]} hxg6 {[%emt 0:06:00] [#]} ({Better is} 21... fxg6 $14 22. Be3 Re8) 22. Nd4 {[%emt 0:01:41]} (22. Rh1 $1 $16) 22... Nxd4 {[%emt 0:01:33]} 23. cxd4 {[%emt 0:01:02]} Qb7 {[%emt 0:01:28]} 24. h5 {[%emt 0:02:13]} Rxc1 {[%emt 0:02:35]} 25. Rxc1 $16 {[%emt 0:01:36]} gxh5 {[%emt 0:05:18]} 26. Qxh5 {[%emt 0:00:24]} f5 {[%emt 0:00:49]} 27. Rh1 {[%emt 0:05:14]} Qd7 {[%emt 0:01:49]} 28. Qg6 {[%emt 0:01:36]} Bf8 {[%emt 0:03:24]} 29. Bg5 {[%emt 0:00:09]} Rc8 {[%emt 0:00:44]} 30. Rh6 {[%emt 0:03:49]} Rc6 {[%emt 0:03:18]} 31. Qh7+ {[%emt 0:02:54]} Kf7 {[%emt 0:00:01]} 32. Rf6+ {[%emt 0:00:17]} Ke8 {[%emt 0:00:17]} 33. Qg6+ {[%emt 0:00:10]} Kd8 {[%emt 0:03:27]} 34. Rxf8+ {[%emt 0:00:14]} Kc7 {[%emt 0:00:05]} 35. Rf7 {[%emt 0:00:06]} 1-0

[Event "8. Arber-Schachopen 2019"]
[Site "Bodenmais"]
[Date "2019.08.02"]
[Round "7.25"]
[White "Speicher, Franz"]
[Black "Schwenkreis, Thomas"]
[Result "0-1"]
[ECO "A45"]
[WhiteElo "1895"]
[BlackElo "2048"]
[Annotator "NA"]
[PlyCount "106"]
[EventDate "2019.07.27"]
[EventCountry "GER"]
[SourceTitle "playchess.com"]
[Source "ChessBase"]
[SourceQuality "1"]
[TimeControl "40/5400+30:1800+30"]

1. d4 {[%emt 0:00:00]} Nf6 {[%emt 0:00:00]} 2. Bg5 {[%emt 0:00:23]} g6 {[%emt 0:00:00]} 3. Bxf6 {[%emt 0:00:21]} exf6 {[%emt 0:00:01]} 4. e3 {[%emt 0:00:33]} Bg7 {[%emt 0:00:04]} 5. g3 {[%emt 0:00:18]} O-O {[%emt 0:00:07]} 6. Bg2 {[%emt 0:00:14]} f5 {[%emt 0:00:09] A45: Trompowsky Attack} 7. Ne2 {[%emt 0:00:32]} c5 {[%emt 0:00:19]} (7... d6 8. c4 c6 9. Nbc3 Nd7 10. O-O Nf6 11. b4 Re8 12. Qd3 Qe7 13. b5 Ne4 14. a4 a6 15. bxc6 bxc6 16. Rab1 a5 17. Rb6 Ra6 18. Rb8 Qc7 19. Rfb1 Nf6 {1-0 (83) Kryakvin,D (2567)-Ponkratov,P (2605) Serpukhov 2018}) 8. c3 {[%emt 0:02:34]} Nc6 {[%emt 0:00:57]} 9. dxc5 {[%emt 0:06:34]} Qa5 {[%emt 0:00:56]} 10. Nd2 $146 {[%emt 0:14:43]} ({Predecessor:} 10. O-O Qxc5 11. Qd5 Qxd5 12. Bxd5 b6 13. Na3 Ba6 14. Bc4 {½-½ (37) Anatsky,A-Zhirnov,A Kiev 2004}) 10... Qxc5 {[%emt 0:01:07]} 11. Nf3 {[%emt 0:01:57]} a5 {[%emt 0:01:57]} 12. O-O {[%emt 0:06:03]} Ra6 {[%emt 0:00:31]} 13. Ned4 {[%emt 0:04:42]} Rb6 {[%emt 0:00:44]} 14. Qd2 {[%emt 0:03:50]} d6 {[%emt 0:01:04]} 15. Rfd1 {[%emt 0:01:45]} a4 {[%emt 0:04:18]} 16. Nxc6 {[%emt 0:03:42]} bxc6 {[%emt 0:04:09]} 17. Qxd6 {[%emt 0:09:16]} Qa5 {[%emt 0:01:46]} 18. Rab1 {[%emt 0:13:09]} Be6 {[%emt 0:02:25]} 19. Qa3 {[%emt 0:04:10]} Rfb8 {[%emt 0:03:48]} 20. b4 {[%emt 0:02:35]} Qa6 {[%emt 0:00:31]} 21. Bf1 {[%emt 0:00:54]} Qa8 {[%emt 0:00:11]} 22. Nd2 {[%emt 0:02:09]} Bf8 {[%emt 0:05:37]} 23. Nc4 {[%emt 0:03:07]} R6b7 {[%emt 0:00:10]} 24. Ne5 {[%emt 0:07:47]} c5 {[%emt 0:07:37]} 25. Bg2 {[%emt 0:08:24]} cxb4 {[%emt 0:03:04]} 26. cxb4 {[%emt 0:03:01]} Qa7 {[%emt 0:00:47]} 27. Nc6 {[%emt 0:01:01]} Qa6 {[%emt 0:02:38]} 28. Nxb8 {[%emt 0:00:15]} Rxb8 {[%emt 0:00:01]} 29. Bd5 {[%emt 0:01:44]} Qe2 {[%emt 0:03:22]} 30. Bxe6 {[%emt 0:00:25]} Rxb4 {[%emt 0:00:12]} 31. Bxf7+ {[%emt 0:02:05]} Kxf7 $18 {[%emt 0:00:19]} 32. Qc1 {[%emt 0:01:38]} Qxa2 {[%emt 0:02:09]} 33. Qc7+ {[%emt 0:00:45]} Kg8 {[%emt 0:02:07]} 34. Rxb4 {[%emt 0:00:22]} Bxb4 {[%emt 0:00:16]} 35. Rd8+ {[%emt 0:02:06]} Bf8 {[%emt 0:00:09]} 36. Qe7 {[%emt 0:01:38]} Qb1+ {[%emt 0:01:32]} 37. Kg2 {[%emt 0:00:13]} Qe4+ {[%emt 0:00:09]} 38. Qxe4 {[%emt 0:00:13]} fxe4 {[%emt 0:00:01]} 39. Ra8 {[%emt 0:00:24]} a3 {[%emt 0:00:06]} 40. f3 {[%emt 0:01:20]} Kf7 {[%emt 0:02:12]} 41. fxe4 {[%emt 0:00:59]} Be7 {[%emt 0:00:00]} 42. Ra6 {[%emt 0:01:01]} Ke8 {[%emt 0:00:15]} 43. Kf2 {[%emt 0:03:48]} Kd7 {[%emt 0:00:04]} 44. Ke2 {[%emt 0:04:36]} Kc7 {[%emt 0:00:06]} 45. Kd3 {[%emt 0:00:57]} Kb7 {[%emt 0:00:01]} 46. Ra4 {[%emt 0:00:27]} Kb6 {[%emt 0:01:13]} 47. Kc4 {[%emt 0:00:53]} Kc6 {[%emt 0:00:25]} 48. e5 {[%emt 0:03:11]} g5 {[%emt 0:01:00]} 49. g4 {[%emt 0:00:30]} Kb6 {[%emt 0:01:39]} 50. Kb3 {[%emt 0:03:17]} Kc6 {[%emt 0:00:26]} 51. Ra7 {[%emt 0:01:32]} Bc5 {[%emt 0:00:58]} 52. e4 {[%emt 0:01:21]} Bxa7 {[%emt 0:00:09]} 53. Kxa3 {[%emt 0:02:19]} Bd4 {[%emt 0:00:02]} 0-1

[Event "8. Arber-Schachopen 2019"]
[Site "Bodenmais"]
[Date "2019.08.02"]
[Round "7.26"]
[White "Navarro Gevers, Daniel"]
[Black "Huhs, Sven"]
[Result "1-0"]
[ECO "A45"]
[WhiteElo "1813"]
[BlackElo "2027"]
[Annotator "NA"]
[PlyCount "41"]
[EventDate "2019.07.27"]
[EventCountry "GER"]
[SourceTitle "playchess.com"]
[Source "ChessBase"]
[SourceQuality "1"]
[TimeControl "40/5400+30:1800+30"]

1. d4 {[%emt 0:00:00]} Nf6 {[%emt 0:00:00]} 2. Bg5 {[%emt 0:00:05]} d5 {[%emt 0:00:01]} 3. Bxf6 {[%emt 0:02:47]} gxf6 {[%emt 0:01:34]} 4. e3 {[%emt 0:01:23]} c5 {[%emt 0:06:35]} 5. dxc5 {[%emt 0:17:32]} e5 {[%emt 0:06:49]} 6. c4 {[%emt 0:06:36]} Qa5+ {[%emt 0:04:55]} 7. Nc3 {[%emt 0:03:56]} dxc4 {[%emt 0:06:31]} 8. Bxc4 {[%emt 0:00:55]} Be6 {[%emt 0:13:08]} 9. Bxe6 {[%emt 0:01:44]} fxe6 {[%emt 0:00:17]} 10. Qb3 {[%emt 0:00:31]} Nd7 {[%emt 0:00:37]} 11. Qxe6+ {[%emt 0:01:08]} Be7 {[%emt 0:02:53]} 12. Rd1 {[%emt 0:20:22]} Nxc5 {[%emt 0:00:47]} 13. Qf5 {[%emt 0:02:39]} e4 {[%emt 0:08:45]} 14. Kf1 {[%emt 0:05:57]} O-O {[%emt 0:10:15]} 15. Nge2 {[%emt 0:04:46]} Rad8 {[%emt 0:02:10]} 16. Nd4 {[%emt 0:01:28]} Qa6+ {[%emt 0:00:59]} 17. Kg1 {[%emt 0:00:30]} Rd6 {[%emt 0:08:20]} 18. Nxe4 {[%emt 0:01:38]} Qe2 {[%emt 0:03:36]} 19. Nc3 {[%emt 0:07:21]} Qxb2 {[%emt 0:00:39]} 20. Qxc5 {[%emt 0:01:05]} Rxd4 {[%emt 0:13:50]} 21. Qxd4 {[%emt 0:00:58]} 1-0